bitfinex/quotes_ETHUSD_20250213
["timestamp","ask_amount","ask_price","bid_price","bid_amount"]
[1739435487405,0.1374,2676.4,2676.0,3.73684]
[1739435487703,0.1374,2676.4,2675.7,3.8873]
[1739435487913,0.1374,2676.4,2675.8,0.80721816]
[1739435488155,0.1374,2676.4,2676.2,3.73655]
[1739435488733,0.015,2676.4,2676.3,3.7365]
[1739435488927,0.285,2676.8,2676.6,3.736]
[1739435489128,0.015,2676.7,2676.5,3.73621]
[1739435489630,0.015,2676.7,2676.4,3.0]
[1739435489864,0.015,2676.5,2676.1,3.73669]
[1739435490360,0.015,2676.5,2676.0,3.73684]
[1739435491030,0.015,2676.5,2675.9,3.73693]
[1739435491356,0.015,2676.3,2675.9,3.73693]
[1739435492359,0.015,2676.3,2675.3,0.8482]
[1739435492360,3.75154,2676.3,2675.3,0.8482]
[1739435492581,0.015,2675.7,2675.2,7.47597]
[1739435492843,0.015,2675.4,2675.0,0.8973]
[1739435493010,0.015,2675.4,2674.9,3.73835]
[1739435493212,0.015,2675.4,2675.0,3.73831]
[1739435493505,0.015,2675.4,2675.1,3.0]
[1739435493878,0.015,2675.4,2675.0,3.73822]
[1739435494046,0.015,2675.4,2675.1,6.73815]
[1739435494251,0.015,2675.4,2675.2,3.0]
[1739435494565,0.015,2675.0,2674.3,3.73918]
[1739435494773,0.1374,2674.9,2674.3,3.73918]
[1739435494975,3.87587,2674.9,2674.3,3.73918]
[1739435495351,0.0075,2674.8,2673.8,0.843]
[1739435495506,0.015,2674.1,2673.4,0.8348]
[1739435495661,0.015,2674.1,2673.5,3.74032]
[1739435496356,0.015,2674.1,2673.6,6.74018]
[1739435496704,0.015,2674.1,2673.6,6.74023]
[1739435496906,0.015,2674.1,2673.6,3.0]
[1739435497059,3.75458,2674.1,2673.5,3.74032]
[1739435497263,3.75458,2674.1,2673.4,3.74054]
[1739435497777,3.75458,2674.1,2673.5,3.74041]
[1739435498603,3.75458,2674.1,2673.4,3.0]
[1739435498903,0.015,2673.9,2673.3,3.74064]
[1739435499118,3.75489,2673.9,2673.3,3.74064]
[1739435499570,0.0075,2673.9,2673.8,3.73999]
[1739435499770,0.0075,2673.9,2673.6,3.74016]
[1739435499972,0.0075,2674.1,2673.8,3.73999]
[1739435500176,0.286,2674.0,2673.8,3.73999]
[1739435500772,0.286,2674.0,2673.7,3.0]
[1739435500977,0.286,2674.0,2673.3,0.57476378]
[1739435501183,0.286,2674.0,2673.5,3.7403]
[1739435501375,0.015,2673.9,2673.6,3.0]
[1739435501596,0.015,2673.9,2673.4,3.74048]
[1739435501962,0.015,2673.9,2673.5,3.0]
[1739435502317,0.286,2674.0,2673.7,3.74002]
[1739435502621,0.286,2674.0,2673.7,3.74003]
[1739435502961,0.286,2674.0,2673.8,3.73992]
[1739435503253,0.301,2674.0,2673.9,3.73985]
[1739435503550,0.29352057,2674.0,2673.9,3.73985]
[1739435504111,0.29352057,2674.0,2673.6,3.0]
[1739435504542,0.29352057,2674.0,2673.6,6.74027]
[1739435504864,0.29352057,2674.0,2673.6,6.74026]
[1739435505509,0.29352057,2674.0,2673.5,3.74035]
[1739435505716,0.29352057,2674.0,2673.7,7.48008]
[1739435506408,0.29352057,2674.0,2673.8,3.73998]
[1739435506667,0.29352057,2674.0,2673.7,3.74004]
[1739435506973,0.29352057,2674.0,2673.7,3.0]
[1739435507277,0.29352057,2674.0,2673.5,3.74036]
[1739435507438,0.29352057,2674.0,2673.8,3.73989]
[1739435507636,0.29352057,2674.0,2673.9,3.73985]
[1739435507938,0.29352057,2674.0,2673.8,3.73989]
[1739435508133,0.285,2674.1,2673.7,3.0]
[1739435508392,0.285,2674.1,2674.0,3.73971]
[1739435510236,0.285,2674.3,2674.2,3.73936]
[1739435510435,0.3,2674.3,2674.0,3.73961]
[1739435510654,0.3,2674.3,2674.0,7.47924]
[1739435510843,0.3,2674.3,2674.1,3.73956]
[1739435511237,0.3,2674.3,2674.2,3.73943]
[1739435511662,0.3,2674.3,2674.1,3.73956]
[1739435512158,0.015,2674.2,2673.8,3.0]
[1739435512491,0.015,2674.2,2673.8,10.47985]
[1739435512670,0.015,2674.2,2673.8,6.73989]
[1739435512859,0.015,2674.2,2673.9,3.7398]
[1739435513192,0.015,2674.2,2673.8,6.73989]
[1739435513600,0.015,2674.2,2673.8,10.4798]
[1739435513796,0.015,2674.2,2673.8,6.73989]
[1739435514094,3.75451,2674.2,2673.7,6.74005]
[1739435514297,0.015,2674.2,2673.8,3.73987]
[1739435514504,0.015,2674.2,2674.0,3.73963]
[1739435514797,0.015,2674.2,2674.0,3.73962]
[1739435514975,0.015,2674.2,2673.9,3.73985]
[1739435515345,0.015,2674.2,2674.1,3.73957]
[1739435517952,0.285,2674.4,2674.3,3.73928]
[1739435518966,0.285,2674.6,2674.5,3.73894]
[1739435519166,0.285,2674.6,2674.3,3.74787]
[1739435519361,0.285,2674.6,2674.3,3.0]
[1739435519566,0.285,2674.6,2674.5,3.73901]
[1739435520071,0.1379,2675.0,2674.9,3.73845]
[1739435520265,4.285,2675.0,2674.9,3.73845]
[1739435520494,4.0,2675.0,2674.9,3.73845]
[1739435520693,4.0,2675.0,2674.9,4.567723]
[1739435521098,0.58404074,2675.4,2675.2,3.73803]
[1739435521269,0.59904074,2675.4,2675.3,3.73789]
[1739435521471,0.1379,2675.7,2675.4,3.73775]
[1739435521673,0.285,2675.6,2675.5,3.73761]
[1739435521879,0.015,2675.5,2675.4,3.73775]
[1739435522222,5.923,2675.8,2675.6,3.73739]
[1739435522371,0.285,2675.8,2675.5,3.73761]
[1739435522718,0.285,2675.8,2675.6,3.73746]
[1739435522891,0.015,2675.9,2675.8,3.73718]
[1739435523617,0.015,2675.9,2675.7,3.73733]
[1739435523771,0.015,2675.9,2675.5,7.47504]
[1739435523972,0.015,2675.9,2675.5,3.73749]
[1739435524711,0.015,2675.9,2675.3,8.2947]
[1739435524919,0.015,2675.9,2675.4,3.73763]
[1739435525214,3.7521,2675.9,2675.3,3.73778]
[1739435525446,0.015,2675.6,2675.0,0.8621]
[1739435525573,0.015,2675.6,2675.2,3.73803]
[1739435525914,0.015,2675.4,2675.1,3.0]
[1739435526284,0.1379,2675.5,2674.7,0.8106]
[1739435526620,0.1379,2675.5,2675.2,3.73794]
[1739435526817,0.1529,2675.5,2675.4,3.73775]
[1739435527298,0.015,2675.4,2675.2,3.73803]
[1739435527473,0.015,2675.4,2675.3,3.73789]
[1739435528110,0.1379,2675.7,2675.4,3.73769]
[1739435528320,0.015,2675.6,2675.2,3.73797]
[1739435528615,0.015,2675.4,2675.0,3.73829]
[1739435528787,3.75311,2675.2,2674.6,3.73882]
[1739435529121,0.015,2674.9,2674.4,3.73911]
[1739435529317,0.3,2674.9,2674.4,3.73907]
[1739435529620,0.015,2674.7,2674.4,3.73907]
[1739435529775,0.015,2674.7,2674.2,3.73937]
[1739435529975,3.75381,2674.7,2674.0,3.73962]
[1739435530279,0.015,2674.7,2674.2,3.73931]
[1739435530786,0.015,2674.7,2674.3,3.73929]
[1739435530985,0.015,2674.7,2674.5,3.739]
[1739435531189,0.015,2674.7,2674.4,3.73914]
[1739435531693,0.015,2674.7,2674.6,3.73887]
[1739435532005,0.015,2674.7,2674.5,3.73901]
[1739435532322,0.015,2674.7,2674.6,3.73887]
[1739435533056,0.285,2675.0,2674.9,3.73845]
[1739435533348,4.285,2675.0,2674.9,3.73845]
[1739435533516,4.3,2675.0,2674.9,3.73845]
[1739435533721,4.285,2675.0,2674.9,3.73845]
[1739435534056,0.285,2675.0,2674.9,4.48989231]
[1739435535116,0.285,2675.0,2674.6,8.22130289]
[1739435535449,0.015,2674.7,2674.6,3.73879]
[1739435535752,0.015,2674.7,2674.3,3.73919]
[1739435535924,0.015,2674.7,2674.2,7.4787]
[1739435536111,3.75385,2674.7,2674.1,3.73955]
[1739435536451,0.015,2674.7,2674.1,3.0]
[1739435536656,0.015,2674.7,2674.2,3.73931]
[1739435537008,0.015,2674.7,2674.2,7.47867]
[1739435537321,0.015,2674.7,2674.3,3.73928]
[1739435537519,0.015,2674.7,2674.2,3.73931]
[1739435537725,0.015,2674.7,2674.3,3.73929]
[1739435538747,0.015,2674.7,2674.2,3.73931]
[1739435539135,3.75381,2674.7,2674.0,3.73965]
[1739435539315,3.75381,2674.7,2674.0,7.47923]
[1739435539652,0.015,2674.7,2674.2,3.73936]
[1739435539953,4.015,2674.7,2674.4,3.73912]
[1739435540522,4.015,2674.7,2674.5,3.73889]
[1739435540689,4.0,2674.7,2674.6,3.73887]
[1739435541232,4.0,2674.7,2674.6,6.73887]
[1739435541439,0.015,2675.0,2674.6,6.73887]
[1739435541671,0.4229,2675.1,2675.0,3.73831]
[1739435541872,0.285,2675.1,2675.0,3.73831]
[1739435542083,0.3,2675.1,2675.0,3.73831]
[1739435542289,0.015,2675.1,2675.0,3.73831]
[1739435543880,0.2925,2675.4,2675.3,3.73789]
[1739435544028,0.0075,2675.4,2675.3,3.73789]
[1739435544227,0.285,2675.6,2675.5,3.73761]
[1739435544756,0.3,2675.6,2675.5,3.73761]
[1739435545071,0.015,2675.6,2675.5,3.73761]
[1739435546341,5.925,2676.1,2675.4,3.73775]
[1739435546557,0.285,2676.0,2675.8,3.73708]
[1739435546947,0.0075,2675.9,2675.8,3.73708]
[1739435547460,0.0075,2675.9,2675.7,3.73733]
[1739435547759,0.285,2676.1,2675.7,3.73722]
[1739435548140,0.0075,2676.3,2676.2,3.73664]
[1739435548403,4.0075,2676.3,2676.2,3.73664]
[1739435549175,0.0075,2676.3,2676.2,3.73664]
[1739435549410,0.3,2676.5,2676.4,3.73636]
[1739435549806,0.015,2676.5,2676.4,3.73636]
[1739435550394,0.285,2676.6,2676.5,3.73622]
[1739435550596,0.00749121,2676.7,2676.6,3.73608]
[1739435550801,0.00749121,2676.7,2676.6,6.73608]
[1739435551679,1.21e-06,2676.7,2676.6,6.73608]
[1739435552006,1.21e-06,2676.7,2676.6,8.10008]
[1739435552209,1.21e-06,2676.7,2676.6,9.77692386]
[1739435553775,0.0075,2677.5,2677.3,3.73502]
[1739435554010,0.0075,2677.5,2677.3,7.47001]
[1739435554311,0.0075,2677.5,2677.3,3.73499]
[1739435554516,0.0075,2677.5,2677.3,7.47001]
[1739435554717,0.0075,2677.5,2677.4,3.73496]
[1739435555966,2.06135557,2677.6,2677.4,3.73496]
[1739435556558,0.015,2677.5,2677.2,3.73522]
[1739435556959,0.015,2677.5,2677.2,3.73515]
[1739435557138,0.015,2677.5,2677.3,3.7351]
[1739435557339,0.015,2677.5,2677.4,3.73496]
[1739435557751,0.015,2677.5,2677.3,3.7351]
[1739435558147,0.015,2677.5,2676.6,6.18740386]
[1739435558349,0.015,2677.5,2676.7,1.12208509]
[1739435558574,3.74995,2677.5,2676.6,0.7746]
[1739435558726,0.015,2677.2,2676.3,0.8069]
[1739435558920,3.75028,2677.2,2676.3,0.8069]
[1739435559120,0.015,2677.0,2675.9,3.0]
[1739435559378,3.73591,2676.8,2676.0,3.73691]
[1739435559679,4.03605,2676.7,2675.9,0.8069]
[1739435559835,0.015,2676.2,2675.3,3.73789]
[1739435560036,0.285,2676.7,2675.4,0.58971701]
[1739435560281,3.75132,2676.5,2675.8,3.73709]
[1739435560447,3.75132,2676.5,2675.9,3.73704]
[1739435560793,0.015,2676.3,2675.9,3.73704]
[1739435561146,3.73623,2676.5,2675.7,3.73733]
[1739435561337,0.015,2676.4,2675.9,3.73699]
[1739435561541,4.015,2676.4,2675.9,3.73699]
[1739435561737,4.015,2676.4,2675.5,3.0]
[1739435561966,4.015,2676.4,2676.0,3.73691]
[1739435562355,4.015,2676.4,2676.1,3.73674]
[1739435562553,4.015,2676.4,2676.3,3.7365]
[1739435562767,0.3,2676.4,2676.3,3.7365]
[1739435564955,0.015,2676.9,2676.4,3.73626]
[1739435565171,0.285,2676.8,2676.4,3.73626]
[1739435565372,0.015,2676.7,2676.4,3.73625]
[1739435566087,0.015,2676.4,2675.8,3.73709]
[1739435566391,0.015,2676.4,2675.9,3.73697]
[1739435566586,0.015,2676.4,2675.8,3.73709]
[1739435566786,0.015,2676.4,2676.0,3.7368]
[1739435567002,0.015,2676.4,2676.2,3.73655]
[1739435567188,0.015,2676.4,2675.6,0.3589717]
[1739435567392,0.015,2676.4,2676.0,3.7369]
[1739435567589,0.015,2676.4,2676.0,7.4738]
[1739435567889,0.015,2676.4,2675.7,3.0]
[1739435568122,0.015,2676.4,2675.5,3.73753]
[1739435568409,0.015,2676.0,2675.5,7.47506]
[1739435568609,0.015,2676.0,2675.6,3.73746]
[1739435568775,3.73658,2676.3,2675.7,3.73725]
[1739435568776,0.015,2676.2,2675.7,3.73725]
[1739435568980,0.015,2676.2,2675.9,3.73705]
[1739435569182,0.015,2676.4,2676.0,3.73689]
[1739435569392,5.305,2676.4,2676.0,3.73689]
[1739435569610,5.305,2676.4,2675.6,3.73739]
[1739435570014,0.015,2676.2,2676.0,3.73689]
[1739435570489,0.015,2676.3,2676.0,3.73689]
[1739435570807,0.015,2676.3,2675.9,3.73694]
[1739435571010,0.015,2676.3,2676.1,3.73676]
[1739435571215,4.015,2676.2,2676.1,3.73667]
[1739435571398,0.015,2676.2,2676.1,3.73667]
[1739435574282,4.48052874,2677.1,2676.5,3.73622]
[1739435574283,0.285,2676.6,2676.5,3.73622]
[1739435574513,3.73519,2677.3,2676.7,3.73594]
[1739435574514,3.73513,2677.3,2676.7,3.73594]
[1739435574761,4.3,2676.8,2676.7,3.73594]
[1739435574965,0.015,2676.7,2676.3,3.73646]
[1739435575141,0.015,2676.7,2676.1,1.37230379]
[1739435575142,3.75098,2676.7,2676.1,3.7367]
[1739435575300,0.015,2676.7,2675.9,3.73697]
[1739435575500,0.015,2676.4,2675.9,3.73697]
[1739435575729,0.015,2676.4,2675.9,7.47394]
[1739435576202,0.015,2676.4,2675.5,4.56195]
[1739435576203,0.015,2676.3,2675.8,3.0]
[1739435576542,0.015,2676.0,2675.5,3.73748]
[1739435576744,0.015,2675.7,2675.3,3.73788]
[1739435576950,0.015,2675.5,2675.3,3.73788]
[1739435577468,0.015,2675.5,2675.3,3.7378]
[1739435577762,0.015,2675.5,2675.4,3.73775]
[1739435578961,0.015,2675.5,2675.1,3.73807]
[1739435579163,0.015,2675.5,2675.0,3.73831]
[1739435579472,3.7527,2675.5,2674.9,3.73839]
[1739435579623,0.015,2675.5,2674.9,3.73835]
[1739435580004,0.0075,2675.4,2675.0,3.73831]
[1739435580205,0.0075,2675.4,2674.9,7.47671]
[1739435580474,0.0075,2675.4,2674.9,3.73835]
[1739435580605,0.0075,2675.4,2675.0,3.73829]
[1739435580806,0.0075,2675.4,2674.9,3.73835]
[1739435581305,0.0075,2675.4,2675.1,3.73804]
[1739435581512,0.0075,2675.4,2675.0,3.73828]
[1739435581988,0.0075,2675.4,2675.3,3.73789]
[1739435582264,0.3,2675.4,2675.3,3.73789]
[1739435582960,0.3,2675.4,2675.2,3.73794]
[1739435583721,0.3,2675.4,2675.3,3.73789]
[1739435585106,5.29,2676.0,2675.5,3.73759]
[1739435585307,3.73643,2676.4,2675.7,3.73722]
[1739435585308,0.285,2675.9,2675.7,3.73722]
[1739435585565,0.015,2675.8,2675.7,3.73722]
[1739435585708,0.015,2675.8,2675.6,3.73747]
[1739435585911,0.015,2675.8,2675.6,7.47486]
[1739435586133,0.015,2675.8,2675.7,3.73733]
[1739435586311,0.015,2675.8,2675.6,3.73738]
[1739435586739,0.285,2675.9,2675.5,3.73758]
[1739435586950,5.29,2676.3,2675.0,0.8253]
[1739435587128,0.285,2676.2,2675.7,3.73725]
[1739435587308,0.015,2676.1,2675.5,3.73753]
[1739435587519,0.015,2676.1,2675.3,3.73781]
[1739435587520,0.015,2675.9,2675.3,3.73781]
[1739435587746,3.75208,2675.9,2675.3,7.47563]
[1739435587944,3.75208,2675.9,2675.1,0.50101816]
[1739435587945,0.015,2675.7,2675.0,0.8253]
[1739435588273,0.015,2675.7,2674.6,4.18488161]
[1739435588274,0.015,2675.5,2675.1,3.73815]
[1739435588415,0.015,2675.2,2674.7,3.73864]
[1739435588775,0.285,2675.1,2674.7,3.7387]
[1739435589075,0.285,2675.1,2674.7,3.0]
[1739435589207,0.015,2675.0,2674.4,3.73906]
[1739435589406,3.75343,2675.0,2674.3,0.771]
[1739435589662,0.015,2675.0,2674.6,3.73877]
[1739435590433,0.015,2675.0,2674.7,3.73873]
[1739435590765,0.015,2675.0,2674.3,3.73925]
[1739435590948,0.015,2675.0,2674.8,3.73858]
[1739435591563,0.285,2674.9,2674.5,0.8239]
[1739435591769,0.015,2675.4,2674.9,3.73836]
[1739435591933,0.285,2675.0,2674.9,3.73836]
[1739435592467,0.285,2675.0,2674.5,0.8239]
[1739435592817,0.285,2675.0,2674.2,0.8155]
[1739435593010,0.285,2675.0,2674.6,3.73875]
[1739435593251,0.285,2675.0,2674.7,3.73868]
[1739435593580,0.285,2675.0,2674.9,3.73845]
[1739435594180,3.73723,2675.8,2674.8,3.73849]
[1739435594181,5.29,2676.1,2675.7,3.73725]
[1739435594316,4.0,2675.8,2675.7,3.73725]
[1739435594517,4.015,2675.8,2675.7,3.73725]
[1739435594757,4.0,2675.8,2675.7,3.73725]
[1739435595622,0.285,2676.0,2675.6,3.73747]
[1739435595850,0.285,2676.0,2675.8,3.73717]
[1739435596034,0.285,2676.0,2675.9,3.73706]
[1739435596235,0.0075,2676.4,2676.2,3.73664]
[1739435596460,0.0075,2676.4,2675.9,3.73697]
[1739435596461,0.285,2676.0,2675.9,3.73697]
[1739435596818,0.285,2676.0,2675.9,3.73706]
[1739435597048,0.285,2676.0,2675.7,4.52663]
[1739435597369,0.285,2676.0,2675.9,3.73706]
[1739435597666,0.285,2676.0,2675.8,3.73712]
[1739435597861,0.285,2676.0,2675.6,3.73739]
[1739435598360,3.73714,2675.9,2675.3,3.73784]
[1739435598658,0.285,2676.0,2675.7,3.73732]
[1739435598823,4.0,2676.3,2675.6,3.0]
[1739435599023,0.285,2676.2,2675.6,3.750101]
[1739435599256,0.015,2676.5,2676.1,3.73678]
[1739435599439,4.0,2676.2,2676.0,3.73691]
[1739435599623,4.0,2676.2,2676.1,3.73678]
[1739435600035,0.285,2676.3,2676.2,3.73664]
[1739435600458,2.0622118,2676.6,2676.4,3.73624]
[1739435600803,0.285,2676.5,2676.4,3.73624]
[1739435603484,2.0622118,2676.6,2676.5,3.73622]
[1739435609110,2.0622118,2676.6,2676.4,3.73624]
[1739435609272,2.0622118,2676.6,2676.5,3.73622]
[1739435609872,2.0622118,2676.6,2676.5,6.73622]
[1739435610673,2.0622118,2676.6,2676.5,7.52792]
[1739435610868,2.0622118,2676.6,2676.5,8.654336]
[1739435611602,0.285,2677.4,2677.1,3.73529]
[1739435612118,0.285,2677.4,2676.9,3.73558]
[1739435612341,3.75017,2677.3,2676.6,3.0]
[1739435612487,0.015,2677.3,2676.6,3.0]
[1739435612687,3.73548,2677.1,2676.6,3.0]
[1739435612882,0.015,2677.0,2676.6,3.0]
[1739435613419,0.015,2677.0,2676.2,4.56519]
[1739435613606,0.015,2677.0,2676.8,3.73568]
[1739435614026,0.015,2677.0,2676.7,3.73594]
[1739435614027,0.015,2677.0,2676.9,3.73566]
[1739435614186,0.015,2677.0,2676.7,3.73594]
[1739435614703,0.015,2677.0,2676.6,3.73603]
[1739435614894,0.015,2677.0,2676.7,3.73591]
[1739435615095,0.015,2677.0,2676.8,3.73572]
[1739435615433,0.015,2677.0,2676.7,3.73591]
[1739435615634,0.015,2677.0,2676.5,3.73612]
[1739435615979,0.015,2677.0,2676.7,3.73593]
[1739435616793,0.015,2677.0,2676.7,7.47186]
[1739435617030,0.015,2677.0,2676.7,3.73593]
[1739435617345,0.015,2677.0,2676.6,3.73599]
[1739435617636,0.015,2677.0,2676.5,3.73611]
[1739435617841,0.015,2677.0,2676.6,3.73605]
[1739435618336,0.015,2677.0,2676.7,3.73592]
[1739435618892,0.015,2677.0,2676.6,3.73605]
[1739435619293,0.015,2677.0,2676.5,3.73611]
[1739435619489,0.015,2677.0,2676.6,3.73595]
[1739435619751,0.015,2677.0,2676.5,3.73611]
[1739435619935,3.73595,2676.7,2676.2,3.73656]
[1739435620739,0.015,2676.8,2675.9,3.8106]
[1739435620899,0.015,2676.8,2676.5,3.7362]
[1739435621246,0.015,2676.8,2676.3,3.7364]
[1739435621459,0.015,2676.8,2676.4,3.73627]
[1739435621755,0.015,2676.8,2676.3,7.47282]
[1739435621952,3.73624,2676.5,2676.0,3.73685]
[1739435622157,3.73602,2676.7,2675.7,3.73725]
[1739435622158,3.73659,2676.3,2675.7,3.73725]
[1739435622359,3.73673,2676.2,2675.7,3.73732]
[1739435622653,3.73673,2676.2,2675.6,3.7374]
[1739435622992,3.73673,2676.2,2675.8,3.0]
[1739435623196,3.73678,2676.1,2675.5,3.73754]
[1739435623638,7.47347,2676.2,2675.6,6.7374]
[1739435624036,3.73673,2676.2,2675.7,3.73731]
[1739435624494,0.0075,2676.3,2675.7,3.73724]
[1739435624808,0.0075,2676.3,2676.1,3.73667]
[1739435625013,0.285,2676.2,2675.9,7.47396]
[1739435625161,0.285,2676.2,2675.9,3.73698]
[1739435625357,0.2925,2676.2,2676.1,3.73678]
[1739435625919,1.19117327,2676.2,2676.1,3.73678]
[1739435626896,1.18367327,2676.2,2676.1,3.73678]
[1739435628216,1.18367327,2676.2,2676.0,3.73684]
[1739435628416,1.18367327,2676.2,2676.0,3.73682]
[1739435628633,1.18367327,2676.2,2676.1,3.73678]
[1739435629316,1.18367327,2676.2,2676.0,3.73682]
[1739435629496,1.18367327,2676.2,2676.1,3.73678]
[1739435629979,1.18367327,2676.2,2676.0,3.73682]
[1739435630323,3.73679,2676.1,2675.6,3.73738]
[1739435630611,1.18367327,2676.2,2675.7,3.7372]
[1739435630825,4.92035327,2676.2,2675.7,3.7372]
[1739435631752,0.89867327,2676.1,2675.7,3.7372]
[1739435631957,0.89867327,2676.1,2675.9,3.73698]
[1739435632246,0.89867327,2676.1,2675.8,3.73719]
[1739435632451,0.89867327,2676.1,2675.8,3.73713]
[1739435633512,0.89867327,2676.0,2675.8,3.73713]
[1739435633901,0.89867327,2676.0,2675.7,3.73724]
[1739435634103,0.89867327,2676.0,2675.3,0.812]
[1739435634104,0.89867327,2676.0,2675.4,3.73767]
[1739435634321,0.89867327,2676.0,2675.5,3.7375]
[1739435634531,4.63560327,2676.0,2675.5,3.7375]
[1739435634942,3.73718,2675.9,2675.4,3.0]
[1739435635140,3.73752,2675.6,2675.1,3.73806]
[1739435635339,3.73734,2675.7,2675.2,3.73792]
[1739435635885,0.90617327,2675.9,2675.3,3.73786]
[1739435636046,4.64323327,2675.9,2675.4,3.73772]
[1739435636252,0.285,2675.8,2675.4,3.73773]
[1739435637068,0.89867327,2675.7,2675.5,3.73753]
[1739435637386,0.89867327,2675.7,2675.6,3.73747]
[1739435637724,0.89867327,2675.7,2675.6,6.73747]
[1739435639028,0.89867327,2675.7,2675.6,3.0]
[1739435639826,0.89867327,2675.7,2675.5,3.73753]
[1739435640023,0.89867327,2675.7,2675.6,3.73747]
[1739435641126,0.89867327,2675.7,2675.3,0.759]
[1739435641332,0.89867327,2675.7,2675.6,3.73747]
[1739435641690,0.89867327,2675.7,2675.5,3.73752]
[1739435641847,0.89867327,2675.7,2675.6,3.73747]
[1739435642487,0.89867327,2675.7,2675.3,3.73782]
[1739435642687,0.0075,2675.6,2675.1,3.73807]
[1739435642985,0.0075,2675.6,2675.3,3.73779]
[1739435643332,0.0075,2675.6,2675.0,0.7676]
[1739435643333,0.0075,2675.6,2675.4,3.73774]
[1739435643683,0.89867327,2675.7,2675.6,3.73747]
[1739435644035,0.0075,2675.8,2675.7,3.73729]
[1739435644239,0.82973091,2676.5,2675.5,0.8181]
[1739435644493,3.73672,2676.2,2675.6,3.7374]
[1739435644672,3.74458,2675.9,2675.4,3.73766]
[1739435645037,0.89860875,2675.7,2675.4,3.73766]
[1739435645230,0.89860875,2675.7,2675.4,7.47533]
[1739435645433,0.89860875,2675.7,2675.5,3.73761]
[1739435645850,0.89860875,2675.7,2675.5,3.73754]
[1739435646472,0.89860875,2675.7,2675.6,3.73747]
[1739435646649,0.89860875,2675.7,2675.5,3.73754]
[1739435646848,0.89860875,2675.6,2675.5,3.73754]
[1739435647873,0.89860875,2675.6,2675.4,3.73775]
[1739435648081,0.89860875,2675.6,2675.2,4.4941]
[1739435648082,0.89860875,2675.6,2675.2,3.738]
[1739435648449,0.89860875,2675.6,2675.3,3.73778]
[1739435648650,0.89860875,2675.6,2675.2,3.738]
[1739435648852,0.89860875,2675.6,2675.0,7.54061]
[1739435649192,0.89860875,2675.6,2674.8,3.73849]
[1739435649193,0.0075,2675.5,2674.8,3.73849]
[1739435649487,3.74548,2675.3,2674.6,3.73877]
[1739435649657,0.0075,2675.3,2674.6,3.73877]
[1739435649885,3.7379,2675.3,2674.7,6.7386]
[1739435650084,0.0075,2675.2,2674.3,0.768]
[1739435650287,0.90610875,2675.2,2674.9,3.73835]
[1739435650489,0.90610875,2675.2,2674.5,3.73889]
[1739435650892,0.90610875,2675.2,2674.7,3.7386]
[1739435651471,0.90610875,2675.2,2674.4,0.03738764]
[1739435651472,0.90610875,2675.2,2674.3,0.768]
[1739435651724,0.90610875,2675.2,2674.8,7.47704]
[1739435652041,0.89860875,2675.2,2675.1,3.73817]
[1739435652338,4.34561875,2675.2,2675.1,3.73817]
[1739435652471,4.0,2675.2,2675.1,3.73817]
[1739435652829,5.29,2675.3,2675.1,3.73817]
[1739435652993,5.29,2675.3,2675.2,3.73803]
[1739435653200,9.02694,2676.0,2675.2,3.73803]
[1739435653507,0.285,2675.9,2675.5,3.7376]
[1739435654017,4.92110526,2675.9,2675.3,3.73788]
[1739435654315,1.18404526,2675.9,2675.4,3.73772]
[1739435654498,1.18404526,2675.9,2675.6,3.73745]
[1739435654703,4.0,2675.7,2675.6,3.73745]
[1739435655015,4.0,2675.7,2675.4,8.26494]
[1739435655321,4.0,2675.7,2675.4,3.73765]
[1739435655625,0.89904526,2675.7,2675.6,3.73747]
[1739435655776,1.18404526,2675.7,2675.6,3.73747]
[1739435656723,0.89904526,2675.7,2675.6,3.73747]
[1739435656887,0.89904526,2675.7,2675.6,8.314578]
[1739435657972,0.89904526,2675.7,2675.6,8.864578]
[1739435658994,0.34578664,2675.7,2675.6,8.864578]
[1739435659935,6.64e-06,2675.7,2675.6,8.864578]
[1739435660236,6.64e-06,2675.7,2675.6,8.872078]
[1739435660875,0.285,2676.6,2676.3,7.47277]
[1739435661075,3.7356,2677.0,2676.4,3.73624]
[1739435661334,0.285,2676.9,2676.5,3.73618]
[1739435661475,0.285,2676.9,2676.6,3.73594]
[1739435661676,0.285,2676.9,2676.8,3.7358]
[1739435661876,4.0,2676.9,2676.8,3.7358]
[1739435663040,5.923,2677.4,2677.0,3.73552]
[1739435663214,0.285,2677.6,2677.4,3.73488]
[1739435663532,0.285,2677.6,2677.3,3.7351]
[1739435663831,0.285,2677.6,2677.2,3.73524]
[1739435663983,4.01977,2677.6,2677.1,0.7562]
[1739435664181,0.0075,2677.5,2676.8,3.0]
[1739435664411,0.0075,2677.5,2676.7,0.7562]
[1739435664611,3.7424,2677.5,2676.9,3.73555]
[1739435664932,3.7424,2677.5,2676.9,7.47111]
[1739435665139,0.285,2677.6,2676.7,0.7562]
[1739435665433,0.285,2677.6,2677.3,3.73502]